bitfinex-derivatives/quotes_BTCF0:USTF0_20240925
["timestamp","ask_amount","ask_price","bid_price","bid_amount"]
[1727302066851,0.02551594,63537.0,63536.0,0.3608]
[1727302067146,0.0037,63548.0,63536.0,0.3608]
[1727302067147,0.0037,63546.0,63545.0,0.078688]
[1727302067446,0.04425116,63549.0,63546.0,0.078686]
[1727302067662,0.12090819,63548.0,63546.0,0.078686]
[1727302067843,0.078685,63548.0,63546.0,0.078686]
[1727302068041,0.04226246,63547.0,63546.0,0.078686]
[1727302068642,0.078685,63548.0,63546.0,0.078686]
[1727302069951,0.080685,63548.0,63546.0,0.079686]
[1727302070147,0.001,63547.0,63546.0,0.080686]
[1727302070754,0.439485,63547.0,63546.0,0.001]
[1727302071050,0.439485,63547.0,63546.0,0.002]
[1727302071551,0.439485,63547.0,63543.0,0.198689]
[1727302071741,0.07840358,63545.0,63539.0,0.12]
[1727302071940,0.12,63540.0,63535.0,0.0313]
[1727302072141,0.07840358,63539.0,63537.0,0.12]
[1727302072541,0.07840358,63540.0,63537.0,0.12]
[1727302073253,0.078694,63541.0,63537.0,0.198697]
[1727302073254,0.07840358,63539.0,63537.0,0.198697]
[1727302073553,0.07840358,63539.0,63538.0,0.078697]
[1727302074048,0.440414,63541.0,63538.0,0.078697]
[1727302074240,0.002,63539.0,63538.0,0.078697]
[1727302075043,0.06372187,63540.0,63539.0,0.078695]
[1727302075841,0.14241587,63540.0,63539.0,0.078695]
[1727302076045,0.06372187,63540.0,63539.0,0.258695]
[1727302076246,0.06372076,63540.0,63539.0,0.258695]
[1727302076747,0.06472076,63540.0,63539.0,0.259695]
[1727302077553,0.06572076,63540.0,63539.0,0.260695]
[1727302080951,0.003,63540.0,63539.0,0.260695]
[1727302082543,0.02851667,63540.0,63539.0,0.260695]
[1727302088459,0.0705407,63540.0,63539.0,0.260695]
[1727302089551,0.003,63540.0,63539.0,0.260695]
[1727302091559,0.06580269,63540.0,63539.0,0.260695]
[1727302092569,0.003,63540.0,63539.0,0.260695]
[1727302094256,0.0659036,63540.0,63539.0,0.24777374]
[1727302094470,0.06590302,63540.0,63539.0,0.263595]
[1727302095066,0.06592091,63540.0,63539.0,0.263595]
[1727302095268,0.003,63540.0,63539.0,0.31067528]
[1727302095969,0.06592166,63540.0,63539.0,0.34229]
[1727302096269,0.003,63540.0,63539.0,0.37469]
[1727302097557,0.003,63540.0,63539.0,0.43747813]
[1727302097766,0.07091023,63540.0,63539.0,0.37469]
[1727302100566,0.07108178,63540.0,63539.0,0.37469]
[1727302100770,0.07108178,63540.0,63539.0,0.39929476]
[1727302101269,0.07111983,63540.0,63539.0,0.39929476]
[1727302102671,0.07111983,63540.0,63539.0,0.10529976]
[1727302102968,0.07111983,63540.0,63532.0,0.36316062]
[1727302102969,0.31890606,63540.0,63532.0,0.36316062]
[1727302103172,0.23010112,63533.0,63532.0,0.36316062]
[1727302103372,0.31558229,63533.0,63532.0,0.00236062]
[1727302103573,0.31558229,63533.0,63519.0,0.3922]
[1727302103574,0.078715,63524.0,63521.0,0.078717]
[1727302103775,0.078719,63520.0,63516.0,0.078723]
[1727302103975,0.12,63517.0,63516.0,0.078723]
[1727302104181,0.12,63517.0,63516.0,0.10333929]
[1727302104182,0.18811983,63517.0,63516.0,0.10333929]
[1727302104475,0.18811983,63517.0,63507.0,0.3286]
[1727302104476,0.59688408,63517.0,63507.0,0.3286]
[1727302104678,0.59688408,63517.0,63506.0,0.3608]
[1727302104679,0.06287845,63512.0,63508.0,0.1033514]
[1727302104890,0.12,63513.0,63509.0,0.0246184]
[1727302104891,0.06287947,63510.0,63509.0,0.0246184]
[1727302105069,0.06287947,63510.0,63509.0,0.1446184]
[1727302105269,0.06287947,63511.0,63510.0,0.078731]
[1727302105469,0.00092,63517.0,63510.0,0.14461782]
[1727302105470,0.06287947,63514.0,63510.0,0.14461782]
[1727302105675,0.07859807,63518.0,63516.0,0.078724]
[1727302105869,0.07859807,63518.0,63517.0,0.12]
[1727302106177,0.07859807,63520.0,63517.0,0.12]
[1727302106380,0.07859807,63520.0,63516.0,0.078724]
[1727302106583,0.06278048,63517.0,63516.0,0.092724]
[1727302106770,0.06278048,63519.0,63517.0,0.078722]
[1727302107083,0.06278048,63520.0,63518.0,0.258721]
[1727302107384,0.0625,63523.0,63518.0,0.258721]
[1727302107385,0.06278048,63521.0,63518.0,0.258721]
[1727302107780,0.06278048,63522.0,63518.0,0.258721]
[1727302107980,0.002,63519.0,63518.0,0.258721]
[1727302108781,0.06278048,63521.0,63518.0,0.258721]
[1727302108971,0.06478048,63521.0,63518.0,0.258721]
[1727302109372,0.002,63521.0,63518.0,0.258721]
[1727302109569,0.004,63521.0,63518.0,0.258721]
[1727302110376,0.002,63521.0,63518.0,0.258721]
[1727302110582,0.002,63519.0,63518.0,0.258721]
[1727302111280,0.003,63521.0,63518.0,0.258721]
[1727302111281,0.3658,63521.0,63518.0,0.258721]
[1727302111884,0.005,63521.0,63518.0,0.258721]
[1727302112189,0.002,63519.0,63518.0,0.258721]
[1727302112776,0.005,63519.0,63518.0,0.258721]
[1727302113181,0.182,63519.0,63515.0,0.078725]
[1727302113384,0.0331,63518.0,63515.0,0.078725]
[1727302114288,0.111823,63518.0,63515.0,0.078725]
[1727302114786,0.145123,63518.0,63515.0,0.078725]
[1727302115390,0.20790348,63518.0,63516.0,0.078724]
[1727302115581,0.145123,63518.0,63516.0,0.078724]
[1727302115888,0.0351,63518.0,63517.0,0.258723]
[1727302116083,0.002,63518.0,63517.0,0.258723]
[1727302116386,0.004,63518.0,63517.0,0.258723]
[1727302116888,0.005,63518.0,63517.0,0.351323]
[1727302117890,0.001,63518.0,63517.0,0.351323]
[1727302118282,0.001,63518.0,63517.0,0.430046]
[1727302119790,0.3608,63526.0,63525.0,0.078713]
[1727302120989,0.3658,63526.0,63525.0,0.079713]
[1727302125182,0.3658,63526.0,63525.0,0.001]
[1727302125382,0.3658,63526.0,63521.0,0.078717]
[1727302125383,0.078716,63522.0,63521.0,0.078717]
[1727302125686,0.258716,63522.0,63521.0,0.078717]
[1727302126596,0.262716,63522.0,63521.0,0.078717]
[1727302127587,0.263716,63522.0,63521.0,0.079717]
[1727302128498,0.35869648,63522.0,63521.0,0.079717]
[1727302128887,0.35869648,63522.0,63521.0,0.001]
[1727302129292,0.295916,63522.0,63521.0,0.001]
[1727302131597,0.37445232,63522.0,63521.0,0.001]
[1727302132196,0.32144287,63522.0,63521.0,0.001]
[1727302132500,0.41576055,63522.0,63521.0,0.001]
[1727302133097,0.14144287,63522.0,63521.0,0.001]
[1727302133298,0.23584279,63522.0,63521.0,0.001]
[1727302134298,0.235842,63522.0,63521.0,0.001]
[1727302134696,0.22988487,63522.0,63521.0,0.001]
[1727302136804,0.078718,63521.0,63513.0,0.078727]
[1727302137002,0.3608,63514.0,63513.0,0.078727]
[1727302137204,0.42725198,63514.0,63513.0,0.078727]
[1727302138207,0.50597798,63514.0,63513.0,0.078727]
[1727302139195,0.42725198,63514.0,63513.0,0.078727]
[1727302139401,0.42725198,63514.0,63513.0,0.260727]
[1727302140302,0.42825198,63514.0,63513.0,0.260727]
[1727302142504,0.38732608,63514.0,63513.0,0.260727]
[1727302142808,0.001,63514.0,63513.0,0.30780514]
[1727302143008,0.001,63514.0,63513.0,0.260727]
[1727302144607,0.001,63514.0,63513.0,0.30780514]
[1727302144810,0.001,63514.0,63513.0,0.260727]
[1727302145003,0.001,63514.0,63513.0,0.30780514]
[1727302145802,0.001,63514.0,63513.0,0.260727]
[1727302146207,0.001,63514.0,63513.0,0.30780514]
[1727302147402,0.001,63514.0,63513.0,0.66860514]
[1727302148005,0.001,63514.0,63513.0,0.30780514]
[1727302148706,0.001,63514.0,63513.0,0.260727]
[1727302148907,0.001,63514.0,63513.0,0.30785413]
[1727302149922,0.001,63514.0,63513.0,0.260727]
[1727302150114,0.04185012,63514.0,63513.0,0.260727]
[1727302150317,0.06737679,63514.0,63513.0,0.260727]
[1727302151717,0.06737679,63514.0,63513.0,0.080727]
[1727302152016,0.11114258,63514.0,63513.0,0.080727]
[1727302152220,0.1774915,63514.0,63513.0,0.080727]
[1727302153421,0.06734892,63514.0,63513.0,0.080727]
[1727302153612,0.1111616,63514.0,63513.0,0.080727]
[1727302154006,0.06734892,63514.0,63513.0,0.080727]
[1727302154211,0.11477257,63514.0,63513.0,0.080727]
[1727302157017,0.11479346,63514.0,63513.0,0.080727]
[1727302157221,0.19351946,63514.0,63513.0,0.080727]
[1727302157413,0.55431946,63514.0,63513.0,0.080727]
[1727302157820,0.440526,63514.0,63513.0,0.080727]
[1727302158726,0.440526,63514.0,63513.0,0.12791165]
[1727302159326,0.440526,63514.0,63513.0,0.12791088]
[1727302160821,0.440526,63514.0,63513.0,0.04918388]
[1727302161023,0.51925465,63514.0,63513.0,0.04918388]
[1727302162317,0.51925465,63514.0,63513.0,0.002]
[1727302163836,0.59798065,63514.0,63513.0,0.002]
[1727302164046,0.078736,63506.0,63503.0,0.06278813]
[1727302164225,0.078749,63496.0,63495.0,0.0008]
[1727302164421,0.078752,63493.0,63492.0,0.09419161]
[1727302164638,0.078752,63493.0,63487.0,0.078759]
[1727302164639,0.18,63493.0,63487.0,0.078759]
[1727302164838,0.24297411,63489.0,63487.0,0.078759]
[1727302165136,0.24297411,63489.0,63485.0,0.3608]
[1727302165137,0.258757,63489.0,63485.0,0.3608]
[1727302166040,0.249757,63489.0,63485.0,0.3608]
[1727302166339,0.249757,63489.0,63485.0,0.439561]
[1727302166529,0.249757,63489.0,63488.0,0.00736265]
[1727302166728,0.249757,63489.0,63488.0,0.00936265]
[1727302167127,0.249757,63489.0,63488.0,0.007]
[1727302167538,0.610557,63489.0,63488.0,0.007]
[1727302167739,1.083077,63489.0,63488.0,0.007]
[1727302169925,0.610557,63489.0,63488.0,0.007]
[1727302170331,0.63280048,63489.0,63488.0,0.007]
[1727302173327,0.3608,63489.0,63488.0,0.085758]
[1727302174946,0.0037,63498.0,63497.0,0.078747]
[1727302175138,0.3608,63504.0,63496.0,0.3608]
[1727302175335,0.3608,63504.0,63503.0,0.07504]
[1727302176745,0.3658,63504.0,63503.0,0.07604]
[1727302177644,0.005,63504.0,63503.0,0.25604]
[1727302178538,0.018,63504.0,63503.0,0.25704]
[1727302179441,0.012,63504.0,63503.0,0.25704]
[1727302180352,0.012,63504.0,63503.0,0.07704]
[1727302181542,0.007,63504.0,63503.0,0.07604]
[1727302181750,0.011,63504.0,63503.0,0.07604]
[1727302181938,0.004,63504.0,63503.0,0.07604]
[1727302182143,0.008,63504.0,63503.0,0.07604]
[1727302182448,0.013,63504.0,63503.0,0.07704]
[1727302182643,0.005,63504.0,63503.0,0.07604]
[1727302182946,0.016,63504.0,63503.0,0.07704]
[1727302184548,0.015,63504.0,63503.0,0.07704]
[1727302184746,0.01,63504.0,63503.0,0.07604]
[1727302184941,0.015,63504.0,63503.0,0.07704]
[1727302185136,0.015,63504.0,63503.0,0.07604]
[1727302185343,0.015,63504.0,63503.0,0.07704]
[1727302185344,0.016,63504.0,63503.0,0.07704]
[1727302185950,0.016,63504.0,63503.0,0.07604]
[1727302185951,0.011,63504.0,63503.0,0.07604]
[1727302186249,0.016,63504.0,63503.0,0.07704]
[1727302188041,0.011,63504.0,63503.0,0.07604]
[1727302188238,0.011,63504.0,63503.0,0.07704]
[1727302188239,0.017,63504.0,63503.0,0.07704]
[1727302188454,0.04253171,63504.0,63503.0,0.07704]
[1727302188641,0.03753171,63504.0,63503.0,0.07604]
[1727302188837,0.04253171,63504.0,63503.0,0.07704]
[1727302189453,0.03053171,63504.0,63503.0,0.07604]
[1727302189753,0.04153171,63504.0,63503.0,0.07704]
[1727302190756,0.04153174,63504.0,63503.0,0.07704]
[1727302191254,0.13667345,63504.0,63503.0,0.07704]
[1727302193152,0.04253174,63504.0,63503.0,0.07704]
[1727302195057,0.017,63504.0,63503.0,0.07704]
[1727302195856,0.03907018,63504.0,63503.0,0.07704]
[1727302202155,0.10185624,63504.0,63503.0,0.07704]
[1727302202954,0.10607312,63504.0,63503.0,0.07704]
[1727302203955,0.08056864,63504.0,63503.0,0.07704]
[1727302204263,0.15432082,63504.0,63503.0,0.07704]
[1727302204659,0.23305982,63504.0,63503.0,0.002]
[1727302204860,1.4167431,63504.0,63488.0,0.0633]
[1727302205059,0.078752,63494.0,63492.0,0.078753]
[1727302205262,0.06703043,63493.0,63492.0,0.078753]
[1727302205467,0.18703043,63493.0,63492.0,0.078753]
[1727302205663,0.06703043,63493.0,63492.0,0.078753]
[1727302206470,0.06703043,63493.0,63492.0,0.080753]
[1727302207357,0.06668653,63493.0,63492.0,0.080753]
[1727302207558,0.02553542,63496.0,63495.0,0.07875]
[1727302207859,0.06668288,63496.0,63495.0,0.07875]
[1727302208664,0.07068288,63496.0,63495.0,0.07875]
[1727302208966,0.07168288,63496.0,63495.0,0.07875]
[1727302209660,0.07168288,63496.0,63492.0,0.078753]
[1727302209865,0.06668288,63495.0,63487.0,0.3608]
[1727302210072,0.258757,63489.0,63487.0,0.43947599]
[1727302210566,0.078757,63489.0,63487.0,0.3608]
[1727302212069,0.078757,63489.0,63486.0,0.51823699]
[1727302212264,0.078757,63489.0,63486.0,0.439561]
[1727302212664,0.079757,63489.0,63487.0,0.007]
[1727302213154,0.079757,63489.0,63487.0,0.004]
[1727302213360,0.078758,63488.0,63487.0,0.004]
[1727302213665,0.439558,63488.0,63487.0,0.004]
[1727302213867,0.439558,63488.0,63487.0,0.011]
[1727302215069,1.512078,63488.0,63487.0,0.00101842]
[1727302215262,1.61332,63488.0,63473.0,0.07867599]
[1727302215463,1.61332,63488.0,63469.0,0.439581]
[1727302215464,0.173,63474.0,63469.0,0.078781]
[1727302215661,0.439577,63473.0,63469.0,0.078781]
[1727302216574,1.512217,63473.0,63472.0,0.011]
[1727302216764,1.692217,63473.0,63472.0,0.011]
[1727302216965,1.692217,63473.0,63463.0,0.078789]
[1727302216966,0.078783,63469.0,63463.0,0.078789]
[1727302217174,0.5298,63467.0,63463.0,0.078789]
[1727302217487,0.078787,63466.0,63463.0,0.078789]
[1727302217674,0.071787,63466.0,63463.0,0.078789]
[1727302218365,0.53172,63467.0,63464.0,0.078788]
[1727302218566,0.5308,63467.0,63464.0,0.078788]
[1727302218768,0.5308,63467.0,63465.0,0.078787]
[1727302218971,0.5308,63467.0,63466.0,0.078786]
[1727302219172,0.3508,63467.0,63466.0,0.078786]
[1727302219975,0.5308,63467.0,63466.0,0.078786]
[1727302220373,0.5308,63467.0,63458.0,0.3608]
[1727302220374,0.5298,63467.0,63461.0,0.078791]
[1727302220682,0.078786,63466.0,63461.0,0.078791]
[1727302221278,0.18,63463.0,63461.0,0.078791]
[1727302221479,0.109086,63466.0,63461.0,0.078791]
[1727302221775,0.18,63464.0,63461.0,0.078791]
[1727302222076,0.258789,63464.0,63461.0,0.078791]
[1727302222970,0.258789,63464.0,63448.0,0.439608]
[1727302223273,0.18,63459.0,63449.0,0.0332]
[1727302223579,0.3608,63460.0,63459.0,0.078794]
[1727302226073,0.3618,63460.0,63459.0,0.078794]
[1727302227277,0.001,63460.0,63459.0,0.078794]
[1727302230582,0.001,63460.0,63451.0,0.3608]
[1727302230583,0.001,63460.0,63455.0,0.078799]
[1727302230780,0.3608,63458.0,63451.0,0.078804]
[1727302230983,0.18,63452.0,63451.0,0.078804]
[1727302231294,0.20360433,63452.0,63451.0,0.078804]
[1727302231784,0.12480133,63452.0,63451.0,0.078804]
[1727302231978,0.12580133,63452.0,63451.0,0.078804]
[1727302233288,0.48660133,63452.0,63449.0,0.078807]
[1727302233490,0.48760133,63452.0,63444.0,0.078812]
[1727302233790,0.18,63445.0,63444.0,0.078812]
[1727302233985,0.18,63445.0,63435.0,0.0302]
[1727302234186,0.3608,63446.0,63435.0,0.0302]
[1727302234187,0.18,63438.0,63435.0,0.0302]
[1727302234386,0.3608,63440.0,63437.0,0.078821]
[1727302234581,0.18,63438.0,63437.0,0.078821]
[1727302235086,0.18,63438.0,63435.0,0.0302]
[1727302235087,0.3608,63440.0,63439.0,0.078819]
[1727302236282,0.3618,63440.0,63439.0,0.078819]
[1727302236678,0.3628,63440.0,63439.0,0.078819]
[1727302238283,0.002,63440.0,63439.0,0.078819]
[1727302239482,0.002,63440.0,63439.0,0.32140782]
[1727302239886,0.0037,63448.0,63447.0,0.078809]
[1727302240084,0.18,63456.0,63443.0,0.60342915]
[1727302240285,0.18,63456.0,63445.0,0.06262915]
[1727302240490,0.18,63456.0,63446.0,0.06262915]
[1727302240681,0.18,63456.0,63451.0,0.078804]
[1727302241286,0.3618,63452.0,63451.0,0.078804]
[1727302241892,0.3608,63452.0,63451.0,0.078804]
[1727302242093,0.001,63452.0,63451.0,0.14143315]
[1727302242288,0.001,63452.0,63451.0,0.2580775]
[1727302242485,0.001,63452.0,63451.0,0.25812041]
[1727302242688,0.001,63452.0,63451.0,0.17944442]
[1727302242882,0.002,63452.0,63451.0,0.17944442]
[1727302244400,0.002,63452.0,63451.0,0.27351406]
[1727302245318,0.002,63452.0,63451.0,0.17944442]
[1727302246195,0.002,63452.0,63451.0,0.17956524]
[1727302246388,0.002,63452.0,63451.0,0.29969794]
[1727302246793,0.002,63452.0,63451.0,0.17956524]
[1727302246997,0.002,63452.0,63451.0,0.17962958]
[1727302247191,0.002,63452.0,63451.0,0.27388502]
[1727302247503,0.002,63452.0,63451.0,0.17962958]
[1727302247693,0.002,63452.0,63451.0,0.27388844]
[1727302247997,0.002,63452.0,63451.0,0.17962958]
[1727302250204,0.002,63452.0,63451.0,0.27388844]
[1727302250704,0.002,63452.0,63451.0,0.25843358]
[1727302250893,0.002,63452.0,63451.0,0.37841343]
[1727302251601,0.002,63452.0,63451.0,0.55841343]
[1727302252898,0.002,63452.0,63451.0,0.63721743]
[1727302253099,0.3608,63461.0,63460.0,0.078793]
[1727302253403,0.078784,63468.0,63467.0,0.078785]
[1727302253602,0.439584,63468.0,63467.0,0.078785]
[1727302255401,0.454584,63468.0,63467.0,0.078785]
[1727302261008,0.3758,63468.0,63467.0,0.078785]
[1727302262908,0.015,63468.0,63467.0,0.078785]
[1727302263701,0.0037,63478.0,63467.0,1.25268]
[1727302263901,0.0037,63482.0,63477.0,0.18]
[1727302264110,0.36172,63488.0,63481.0,0.5408]
[1727302264309,0.3608,63488.0,63481.0,0.3608]
[1727302265105,0.3608,63488.0,63487.0,0.07876]
[1727302266714,0.3758,63488.0,63487.0,0.07976]
[1727302267404,0.3698,63488.0,63487.0,0.07976]
[1727302267611,0.3798,63488.0,63487.0,0.08076]
[1727302268015,0.5598,63488.0,63487.0,0.08076]
[1727302268209,0.5498,63488.0,63487.0,0.07976]
[1727302268405,0.5608,63488.0,63487.0,0.08076]
[1727302269014,0.640558,63488.0,63487.0,0.002]
[1727302269617,1.63432,63488.0,63470.0,0.0037]
[1727302269823,0.18,63471.0,63470.0,0.078781]
[1727302270328,0.14058483,63471.0,63470.0,0.078781]
[1727302270824,0.14058483,63471.0,63470.0,0.083781]
[1727302272316,0.14158483,63471.0,63470.0,0.088781]
[1727302273218,0.14458483,63471.0,63470.0,0.082781]
[1727302274110,0.15258483,63471.0,63470.0,0.078781]
[1727302275320,0.15358483,63471.0,63470.0,0.078781]
[1727302279427,0.23236483,63471.0,63470.0,0.078781]
[1727302281532,0.078783,63468.0,63467.0,0.110383]
[1727302283031,0.006,63468.0,63467.0,0.110383]
[1727302295034,0.006,63468.0,63467.0,0.078783]
[1727302295233,0.08443672,63468.0,63467.0,0.078783]
[1727302295627,0.08454819,63468.0,63467.0,0.078783]
[1727302296636,0.08457203,63468.0,63467.0,0.078783]
[1727302296832,0.006,63468.0,63467.0,0.078783]
[1727302297032,0.03154593,63468.0,63467.0,0.078783]
[1727302297232,0.03154608,63468.0,63467.0,0.078783]
[1727302297438,0.006,63468.0,63467.0,0.078783]
[1727302297635,0.03154575,63468.0,63467.0,0.078783]
[1727302297838,0.03154575,63468.0,63458.0,0.04711978]
[1727302298036,0.078799,63456.0,63451.0,0.0314]
[1727302298340,0.3608,63464.0,63453.0,0.078801]
[1727302298341,0.258799,63455.0,63453.0,0.078801]
[1727302298541,0.28435057,63455.0,63453.0,0.078801]
[1727302299135,0.27935057,63455.0,63454.0,0.00736363]
[1727302299844,0.28135057,63455.0,63454.0,0.01236363]
[1727302300345,0.255799,63455.0,63454.0,0.01236363]
[1727302301545,0.616599,63455.0,63454.0,0.01236363]
[1727302303343,1.83890903,63455.0,63454.0,0.01]
[1727302303652,0.078813,63444.0,63443.0,0.078814]
[1727302303951,0.078813,63444.0,63440.0,0.0308]
[1727302304149,0.18,63442.0,63440.0,0.109618]
[1727302305937,0.078817,63441.0,63440.0,0.0308]
[1727302306144,0.078817,63441.0,63437.0,0.078821]
[1727302306335,0.078817,63441.0,63438.0,0.07882]
[1727302306537,0.078818,63440.0,63439.0,0.078819]
[1727302306736,0.258818,63440.0,63439.0,0.078819]
[1727302307141,0.258818,63440.0,63434.0,0.40791978]
[1727302307142,0.07882,63439.0,63435.0,0.078824]
[1727302307342,0.07882,63439.0,63436.0,0.1416435]
[1727302307561,0.18,63437.0,63436.0,0.078823]
[1727302307936,0.18,63440.0,63438.0,0.07882]
[1727302308250,0.18,63440.0,63438.0,0.04708498]
[1727302308445,0.18,63440.0,63439.0,0.078819]
[1727302309246,0.181,63440.0,63439.0,0.078819]
[1727302309949,0.182,63440.0,63439.0,0.078819]
[1727302311542,0.002,63440.0,63439.0,0.078819]
[1727302315338,0.078812,63445.0,63444.0,0.078813]
[1727302316456,0.079812,63445.0,63444.0,0.078813]
[1727302317647,0.080812,63445.0,63444.0,0.078813]
[1727302322760,0.078815,63443.0,63440.0,0.078817]
[1727302322954,0.18,63441.0,63440.0,0.078817]
[1727302324059,0.18,63441.0,63440.0,0.12590198]
[1727302324452,0.18,63441.0,63440.0,0.1259486]
[1727302324656,0.181,63441.0,63440.0,0.1259486]
[1727302325253,0.181,63441.0,63440.0,0.078817]
[1727302325857,0.182,63441.0,63440.0,0.079817]
[1727302326449,0.182,63441.0,63440.0,0.1426385]
[1727302327661,0.002,63441.0,63440.0,0.079817]
[1727302328362,0.002,63441.0,63440.0,0.15834388]
[1727302328558,0.002,63441.0,63440.0,0.62022988]
[1727302328955,0.3608,63450.0,63448.0,0.078808]
[1727302330168,0.619606,63450.0,63448.0,0.078808]
[1727302330363,0.3628,63449.0,63448.0,0.079808]
[1727302330568,0.52018932,63449.0,63448.0,0.079808]
[1727302331460,0.4671618,63449.0,63448.0,0.001]
[1727302332074,0.078809,63447.0,63440.0,0.04724486]
[1727302332362,0.078819,63439.0,63438.0,0.04724486]
[1727302332556,0.20555901,63439.0,63434.0,0.04724486]
[1727302332756,0.18,63435.0,63434.0,0.04724486]
[1727302333169,0.18,63435.0,63433.0,0.12607086]
[1727302333568,0.177,63435.0,63433.0,0.12607086]
[1727302333757,0.177,63435.0,63433.0,0.078826]
[1727302333758,0.25564657,63435.0,63433.0,0.078826]
[1727302334156,0.616624,63435.0,63433.0,0.078826]
[1727302334358,0.617624,63435.0,63433.0,0.078826]
[1727302334758,0.07864657,63434.0,63429.0,0.04724486]
[1727302334959,0.5388,63435.0,63424.0,0.04724486]
[1727302334960,0.078835,63426.0,63424.0,0.04724486]
[1727302335167,0.11992,63433.0,63422.0,0.04724486]
[1727302335168,0.5408,63425.0,63422.0,0.04724486]
[1727302335471,0.5408,63425.0,63420.0,0.14183515]
[1727302335472,0.60364341,63425.0,63420.0,0.12608686]
[1727302335662,0.18,63421.0,63420.0,0.12608686]
[1727302335861,0.18,63421.0,63420.0,0.078842]
[1727302336858,0.181,63421.0,63420.0,0.078842]
[1727302337269,0.182,63421.0,63420.0,0.078842]
[1727302337578,0.182,63421.0,63420.0,0.18031129]
[1727302337986,0.002,63421.0,63420.0,0.18031129]
[1727302338485,0.002,63421.0,63420.0,0.27477942]
[1727302338683,0.18,63429.0,63428.0,0.078833]
[1727302339483,0.3608,63434.0,63425.0,0.25863227]
[1727302339781,0.3608,63434.0,63432.0,0.06289481]
[1727302339981,0.3608,63434.0,63430.0,0.07863227]
[1727302340571,0.3608,63434.0,63433.0,0.078827]
[1727302340880,0.3608,63434.0,63431.0,0.06289054]
[1727302341076,0.2412,63433.0,63430.0,0.06289433]
[1727302341381,0.2412,63433.0,63421.0,0.0306]
[1727302341382,0.0925,63433.0,63428.0,0.06289433]
[1727302341580,0.0925,63433.0,63431.0,0.04716809]
[1727302342180,0.078829,63431.0,63430.0,0.04716809]
[1727302342382,0.258829,63431.0,63430.0,0.04716809]
[1727302342586,0.18,63431.0,63430.0,0.078831]
[1727302343586,0.182,63431.0,63430.0,0.078831]
[1727302344579,0.002,63431.0,63430.0,0.078831]
[1727302344778,0.002,63431.0,63430.0,0.14172533]
[1727302344981,0.002,63431.0,63430.0,0.078831]
[1727302345382,0.002,63431.0,63430.0,0.14170054]
[1727302345579,0.002,63431.0,63430.0,0.078831]
[1727302345776,0.002,63431.0,63430.0,0.14170054]
[1727302346894,0.00027977,63431.0,63430.0,0.14170054]
[1727302351391,0.00027977,63431.0,63430.0,0.078831]
[1727302351787,0.078833,63429.0,63428.0,0.078833]
[1727302351997,0.078834,63427.0,63426.0,0.078835]
[1727302352489,0.078836,63426.0,63420.0,0.0471651]
[1727302352698,1.578836,63426.0,63420.0,0.0471651]
[1727302352890,0.18,63424.0,63423.0,0.078839]
[1727302355296,0.181,63424.0,63423.0,0.078839]
[1727302355593,0.182,63424.0,63423.0,0.078839]
[1727302356092,0.002,63424.0,63423.0,0.078839]
[1727302356285,0.002,63424.0,63423.0,0.439639]
[1727302356691,0.002,63424.0,63423.0,0.4868041]
[1727302356992,0.002,63424.0,63423.0,1.512639]
[1727302357185,0.002,63424.0,63423.0,1.83557089]
[1727302357382,0.002,63424.0,63423.0,1.83556861]
[1727302357582,0.002,63424.0,63423.0,0.50372961]
[1727302357785,0.002,63424.0,63423.0,0.56662386]
[1727302357987,0.002,63424.0,63423.0,0.52718348]
[1727302358183,0.002,63424.0,63423.0,1.60018348]
[1727302358394,0.002,63424.0,63423.0,0.93728923]
[1727302358587,0.002,63424.0,63423.0,0.97673179]
[1727302358989,0.002,63424.0,63423.0,0.93728923]
[1727302359185,0.002,63424.0,63423.0,0.97673176]
[1727302359494,0.002,63424.0,63423.0,1.171478]
[1727302359692,0.002,63424.0,63423.0,1.23557205]
[1727302360289,0.082527,63433.0,63432.0,0.078828]
[1727302360483,0.078827,63433.0,63432.0,0.078828]
[1727302361199,0.078827,63433.0,63432.0,0.15752046]
[1727302361391,0.079827,63433.0,63432.0,0.15752046]
[1727302361793,0.080827,63433.0,63432.0,0.15752046]
[1727302362396,0.080827,63433.0,63432.0,0.1802329]
[1727302362587,0.080827,63433.0,63432.0,0.25899026]
[1727302363299,0.080827,63433.0,63432.0,0.1802329]
[1727302364591,0.260827,63433.0,63432.0,0.1802329]
[1727302365200,0.260827,63433.0,63432.0,0.25899825]
[1727302365493,0.260827,63433.0,63432.0,0.1802329]
[1727302366091,0.260827,63433.0,63432.0,0.2590018]
[1727302366402,0.260827,63433.0,63432.0,0.25900709]
[1727302367298,0.260827,63433.0,63432.0,0.15760219]
[1727302367601,0.28638769,63433.0,63432.0,0.078828]
[1727302370390,0.02756069,63433.0,63432.0,0.157656]
[1727302370603,0.002,63433.0,63432.0,0.20492474]
[1727302370796,0.002,63433.0,63432.0,0.22174153]
[1727302371000,0.06290406,63436.0,63435.0,0.157648]
[1727302371299,0.06290406,63439.0,63438.0,0.078821]
[1727302371596,0.07862021,63444.0,63443.0,0.078814]
[1727302371803,0.3608,63447.0,63440.0,0.04724693]
[1727302371804,0.07862021,63445.0,63440.0,0.04724693]
[1727302371996,0.06288797,63445.0,63443.0,0.04724693]
[1727302372190,0.06288797,63445.0,63442.0,0.619615]
[1727302372191,0.06288797,63447.0,63446.0,0.078811]
[1727302372392,0.07860642,63452.0,63446.0,0.078811]
[1727302372393,0.06288797,63452.0,63451.0,0.078804]
[1727302372593,0.06288797,63452.0,63446.0,0.06407069]